fUSD/lending_fUSD_20240122
["ID","MTS","AMOUNT","RATE_DAILY","PERIOD"]
[312510611,1705935419942,-381.93576223,0.0004475,30]
[312510612,1705935419977,-381.93576223,0.0004475,30]
[312510613,1705935420012,-1000.0,0.000489,30]
[312510614,1705935420048,-150.0,0.00049315,30]
[312510615,1705935420084,-28848.31163305,0.0005,30]
[312510616,1705935420119,-305.16478104,0.0005,120]
[312510617,1705935420154,-300.0,0.0005,35]
[312510618,1705935420188,-160.00953017,0.000502,30]
[312510619,1705935420223,-4911.09259311,0.00050441,120]
[312510620,1705935420257,-450.0,0.00050684,40]
[312510621,1705935420295,-197.08406692,0.00051,30]
[312510622,1705935420330,-600.0,0.00051369,45]
[312510623,1705935420365,-1218.55904853,0.00052,30]
[312510624,1705935420403,-750.0,0.00052054,50]
[312510625,1705935420437,-900.0,0.00052739,55]
[312510626,1705935420473,-1300.03650738,0.00052914,30]
[312510627,1705935420506,-783.89717207,0.00053,30]
[312510628,1705935420540,-170.0,0.00053,120]
[312510629,1705935420574,-1050.0,0.00053424,60]
[312510630,1705935420611,-1300.03650738,0.00053907,31]
[312510631,1705935420646,-7012.50479412,0.00054,30]
[312510632,1705935420681,-1200.0,0.00054109,65]
[312510633,1705935420719,-160.9462045,0.0005479,30]
[312510634,1705935420753,-156.83556796,0.0005479,30]
[312510635,1705935420789,-156.83,0.0005479,30]
[312510636,1705935420827,-156.83556796,0.0005479,30]
[312510637,1705935420863,-156.83556796,0.0005479,30]
[312510638,1705935420898,-156.83556796,0.0005479,30]
[312510639,1705935420932,-164.66556385,0.0005479,30]
[312510640,1705935420966,-164.66556385,0.0005479,30]
[312510641,1705935421000,-164.66556385,0.0005479,30]
[312510642,1705935421035,-164.66556385,0.0005479,30]
[312510643,1705935421070,-164.66556385,0.0005479,30]
[312510644,1705935421105,-164.66556385,0.0005479,30]
[312510645,1705935421140,-164.66,0.0005479,30]
[312510646,1705935421176,-230.53178939,0.0005479,30]
[312510647,1705935421211,-230.53178939,0.0005479,30]
[312510648,1705935421247,-230.53178939,0.0005479,30]
[312510649,1705935421282,-230.53178939,0.0005479,30]
[312510650,1705935421318,-230.53178939,0.0005479,30]
[312510651,1705935421361,-230.53178939,0.0005479,30]
[312510652,1705935421400,-230.53178939,0.0005479,30]
[312510653,1705935421436,-230.53178939,0.0005479,30]
[312510654,1705935421475,-1222.41,0.00054794,30]
[312510655,1705935421510,-500.0,0.00054794,30]
[312510656,1705935421547,-500.0,0.00054794,120]
[312510657,1705935421583,-500.0,0.00054794,120]
[312510658,1705935421617,-500.0,0.00054794,120]
[312510659,1705935421653,-10322.92,0.00054794,120]
[312510660,1705935421688,-500.0,0.00054794,120]
[312510661,1705935421724,-500.0,0.00054794,120]
[312510662,1705935421759,-15948.35,0.00054794,120]
[312510663,1705935421794,-909.74,0.00054794,120]
[312510664,1705935421828,-1715.73,0.00054794,120]
[312510665,1705935421862,-738.6,0.00054794,120]
[312510666,1705935421896,-2028.3,0.00054794,120]
[312510667,1705935421930,-1508.01,0.00054794,120]
[312510668,1705935421964,-1189.95,0.00054794,120]
[312510669,1705935421999,-3713.54,0.00054794,120]
[312510670,1705935422036,-1173.15,0.00054794,120]
[312510671,1705935422084,-836.23,0.00054794,120]
[312510672,1705935422126,-1795.76,0.00054794,120]
[312510673,1705935422166,-1917.71,0.00054794,120]
[312510674,1705935422205,-1475.89,0.00054794,120]
[312510675,1705935422248,-500.0,0.00054794,120]
[312510676,1705935422288,-1259.44,0.00054794,120]
[312510677,1705935422333,-2840.81,0.00054794,120]
[312510678,1705935422372,-2884.65,0.00054794,120]
[312510679,1705935422410,-910.03,0.00054794,120]
[312510680,1705935422447,-513.96,0.00054794,120]
[312510681,1705935422482,-572.33,0.00054794,120]
[312510682,1705935422517,-7207.68,0.00054794,120]
[312510683,1705935422554,-5122.57,0.00054794,120]
[312510684,1705935422588,-500.0,0.00054794,120]
[312510685,1705935422623,-1065.62,0.00054794,120]
[312510686,1705935422659,-500.0,0.00054794,120]
[312510687,1705935422695,-500.0,0.00054794,120]
[312510688,1705935422733,-574.55,0.00054794,120]
[312510689,1705935422771,-1350.0,0.00054794,70]
[312510690,1705935422811,-1819.64,0.00054794,120]
[312510691,1705935422847,-1086.22,0.00054794,120]
[312510692,1705935423063,-500.0,0.00054794,120]
[312510693,1705935423103,-8493.45,0.00054794,120]
[312510694,1705935423141,-1487.96,0.00054794,120]
[312510695,1705935423178,-500.0,0.00054794,120]
[312510696,1705935423212,-500.0,0.00054794,120]
[312510697,1705935423248,-2077.19,0.00054794,120]
[312510698,1705935423284,-1389.92,0.00054794,120]
[312510699,1705935423327,-1304.23,0.00054794,120]
[312510700,1705935423370,-500.0,0.00054794,120]
[312510701,1705935423421,-5921.18,0.00054794,120]
[312510702,1705935423465,-1909.36,0.00054794,120]
[312510703,1705935423505,-500.0,0.00054794,120]
[312510704,1705935423549,-901.5,0.00054794,120]
[312510705,1705935423588,-1637.74,0.00054794,120]
[312510706,1705935423624,-500.0,0.00054794,120]
[312510707,1705935423915,2839.42,0.00054794,120]
[312510708,1705935424049,1599.12,0.00054794,120]
[312510709,1705935424273,1992.7,0.00054794,120]
[312510710,1705935424706,1007.21,0.00054794,120]
[312510711,1705935424817,500.0,0.00054794,120]
[312510712,1705935425001,500.0,0.00054794,120]
[312510713,1705935425372,13698.9,0.00054794,120]
[312510714,1705935425769,500.0,0.00054794,120]
[312510715,1705935426014,1431.83,0.00054794,120]
[312510716,1705935426340,1020.95,0.00054794,120]
[312510717,1705935426396,401.1277698,0.00045,120]
[312510718,1705935426923,1573.59,0.00054794,120]
[312510719,1705935427059,500.0,0.00054794,120]
[312510720,1705935427378,500.0,0.00054794,120]
[312510721,1705935427699,798.12,0.00054794,120]
[312510722,1705935428042,1753.19,0.00054794,120]
[312510723,1705935428095,500.0,0.00054794,120]
[312510724,1705935428297,500.0,0.00054794,120]
[312510725,1705935428481,500.0,0.00054794,120]
[312510726,1705935428609,500.0,0.00054794,120]
[312510727,1705935428836,1390.09,0.00054794,120]
[312510728,1705935428880,1573.74894226,0.00048,30]
[312510729,1705935428920,1676.07,0.00054794,120]
[312510730,1705935429022,1338.5008495,0.00021997,2]
[312510731,1705935429173,364.52005885,0.00021997,2]
[312510732,1705935429196,635.47994115,0.00021997,2]
[312510733,1705935429400,572.68,0.00054794,120]
[312510734,1705935429606,686.95,0.00054794,120]
[312510735,1705935429651,1952.51,0.00054794,120]
[312510736,1705935429688,1000.0,0.00021997,2]
[312510737,1705935429733,500.0,0.00054794,120]
[312510738,1705935430258,1807.32,0.00054794,120]
[312510739,1705935430320,1066.5,0.00054794,120]
[312510740,1705935430512,1000.0,0.00021997,2]
[312510741,1705935430668,500.0,0.00054794,120]
[312510742,1705935430878,584.31222877,0.00054794,120]
[312510743,1705935431186,784.78,0.00054794,120]
[312510744,1705935431407,360.33583876,0.00014999,2]
[312510745,1705935431483,2428.19,0.00054794,120]
[312510746,1705935431513,356.38218986,0.00021997,2]
[312510747,1705935431538,643.61781014,0.00021997,2]
[312510748,1705935431596,957.96,0.00054794,120]
[312510749,1705935431670,3788.96,0.00054794,120]
[312510750,1705935431719,1503.74,0.00054794,120]
[312510751,1705935431761,4698.92,0.00054794,120]
[312510752,1705935431994,158.50125027,0.0003668,30]
[312510753,1705935432106,1616.89,0.00054794,120]
[312510754,1705935432468,500.0,0.00054794,120]
[312510755,1705935432617,526.06,0.00054794,120]
[312510756,1705935432880,500.0,0.00054794,120]
[312510757,1705935432930,934.23,0.00054794,120]
[312510758,1705935433135,500.0,0.00054794,120]
[312510759,1705935433198,500.0,0.00054794,120]
[312510760,1705935433308,1738.43,0.00054794,120]
[312510761,1705935433471,855.97,0.00054794,120]
[312510762,1705935433631,602.12,0.00054794,120]
[312510763,1705935434227,1065.74,0.00054794,120]
[312510764,1705935434318,500.0,0.00054794,120]
[312510765,1705935434479,1409.4,0.00054794,120]
[312510766,1705935434534,1488.77,0.00054794,120]
[312510767,1705935434816,1425.64,0.00054794,120]
[312510768,1705935434953,1573.74894225,0.00048,30]
[312510769,1705935435348,500.0,0.00054794,30]
[312510770,1705935435427,500.0,0.00054794,120]
[312510771,1705935435537,176.43,0.00022,2]
[312510772,1705935435858,500.0,0.00054794,120]
[312510773,1705935435935,1978.16,0.00054794,120]
[312510774,1705935436056,500.0,0.00054794,120]
[312510775,1705935436108,542.1,0.00054794,120]
[312510776,1705935436278,500.0,0.00054794,120]
[312510777,1705935436481,257.14,0.00022,2]
[312510778,1705935436628,500.0,0.00054794,120]
[312510779,1705935436889,1744.32,0.00054794,120]
[312510780,1705935436979,727.07,0.00054794,120]
[312510781,1705935437152,500.0,0.00054794,120]
[312510782,1705935437882,802.61,0.00054794,120]
[312510783,1705935437953,1464.4,0.00054794,120]
[312510784,1705935438010,1627.06,0.00054794,120]
[312510785,1705935438125,500.0,0.00054794,120]
[312510786,1705935438609,997.67,0.00054794,120]
[312510787,1705935438773,1146.86,0.00054794,120]
[312510788,1705935438819,867.1,0.00054794,120]
[312510789,1705935438927,500.0,0.00054794,120]
[312510790,1705935439307,906.7,0.00054794,120]
[312510791,1705935439538,1411.11,0.00054794,120]
[312510792,1705935439666,781.1,0.00054794,120]
[312510793,1705935439709,1108.71,0.00054794,120]
[312510794,1705935439850,779.59,0.00054794,120]
[312510795,1705935439985,1054.3,0.00054794,120]
[312510796,1705935440042,221.91669872,0.00022,2]
[312510797,1705935440609,156.56,0.000545,30]
[312510798,1705935440777,500.0,0.00054794,120]
[312510799,1705935440872,2242.64,0.00054794,120]
[312510800,1705935441485,236.5,0.00054794,30]
[312510801,1705935441714,500.0,0.00054794,120]
[312510802,1705935442353,500.0,0.00054794,120]
[312510803,1705935442632,500.0,0.00054794,120]
[312510804,1705935443009,500.0,0.00054794,120]
[312510805,1705935443373,759.07,0.00054794,120]
[312510806,1705935444027,500.0,0.00054794,120]
[312510807,1705935444215,984.09,0.00054794,120]
[312510808,1705935444909,927.62,0.00054794,120]
[312510809,1705935445017,1253.67,0.00054794,120]
[312510810,1705935445143,672.49,0.00054794,120]
[312510811,1705935446067,869.77,0.00054794,120]
[312510812,1705935446122,500.0,0.00054794,120]
[312510813,1705935446229,1000.0,0.000532,30]
[312510814,1705935446497,1088.76,0.00054794,120]
[312510815,1705935446837,1338.1,0.00054794,120]
[312510816,1705935447277,1002.76,0.00054794,120]
[312510817,1705935447315,1000.0,0.00018397,2]
[312510818,1705935447369,1871.16,0.00054794,120]
[312510819,1705935448081,1000.0,0.00018397,2]
[312510820,1705935448388,500.0,0.00054794,120]
[312510821,1705935448588,948.67,0.00054794,120]
[312510822,1705935449150,560.49,0.00054794,120]
[312510823,1705935449414,550.0,0.00054794,120]
[312510824,1705935449486,550.0,0.00054794,120]
[312510825,1705935449551,550.0,0.00054794,120]
[312510826,1705935449631,550.0,0.00054794,120]
[312510827,1705935449680,550.0,0.00054794,120]
[312510828,1705935449726,550.0,0.00054794,120]
[312510829,1705935449851,550.0,0.00054794,120]
[312510830,1705935449904,550.0,0.00054794,120]
[312510831,1705935449963,550.0,0.00054794,120]
[312510832,1705935450015,550.0,0.00054794,120]
[312510833,1705935450084,550.0,0.00054794,120]
[312510834,1705935450226,550.0,0.00054794,120]
[312510835,1705935450324,550.0,0.00054794,120]
[312510836,1705935450402,550.0,0.00054794,120]
[312510837,1705935450456,550.0,0.00054794,120]
[312510838,1705935450505,550.0,0.00054794,120]
[312510839,1705935450640,550.0,0.00054794,120]
[312510840,1705935450718,550.0,0.00054794,120]
[312510841,1705935450770,463.19938413,0.00054794,120]
[312510842,1705935451110,1181.28,0.00054794,120]
[312510843,1705935451168,1002.12,0.00054794,120]
[312510844,1705935451306,852.96,0.00054794,120]
[312510845,1705935452463,751.4,0.00054794,120]
[312510846,1705935452512,1176.84,0.00054794,120]
[312510847,1705935453087,800.45,0.00054794,120]
[312510848,1705935453333,53.09346091,0.00021977,2]
[312510849,1705935453358,3352.19796977,0.00021977,2]
[312510850,1705935453383,3352.19796977,0.00021977,2]
[312510851,1705935453411,3352.19796977,0.00021977,2]
[312510852,1705935453435,3352.19796977,0.00021977,2]
[312510853,1705935453462,3402.75682129,0.00021977,2]
[312510854,1705935453663,981.55,0.00054794,120]
[312510855,1705935453937,500.0,0.00054794,120]
[312510856,1705935453982,500.0,0.00054794,120]
[312510857,1705935454133,618.87,0.00054794,120]
[312510858,1705935454183,827.39,0.00054794,120]
[312510859,1705935454406,500.0,0.00054794,120]
[312510860,1705935454485,1133.65,0.00054794,120]
[312510861,1705935455412,500.0,0.00054794,120]
[312510862,1705935455514,227.07,0.00054794,120]
[312510863,1705935455699,744.17,0.00054794,120]
[312510864,1705935455744,500.0,0.00054794,120]
[312510865,1705935455855,869.38,0.00054794,120]
[312510866,1705935455896,736.38,0.00054794,120]
[312510867,1705935455972,582.32,0.00054794,120]
[312510868,1705935456051,574.87,0.00054794,120]
[312510869,1705935456124,500.0,0.00054794,120]
[312510870,1705935456402,943.04,0.00054794,120]
[312510871,1705935456459,500.0,0.00054794,120]
[312510872,1705935456733,500.0,0.00054794,120]
[312510873,1705935456917,837.47,0.00054794,120]
[312510874,1705935457223,478.43258003,0.0004475,30]
[312510875,1705935457404,1017.19,0.00054794,120]
[312510876,1705935457540,2058.42,0.00054795,30]
[312510877,1705935457652,878.57,0.00054794,120]
[312510878,1705935457733,739.34,0.00054794,120]
[312510879,1705935458124,150.0,0.00054,120]
[312510880,1705935458183,500.0,0.00054794,120]
[312510881,1705935458348,170.0,0.00053,120]
[312510882,1705935458406,516.97,0.00054794,120]
[312510883,1705935458782,1272.52,0.00054794,120]
[312510884,1705935458881,830.29,0.00054794,120]
[312510885,1705935459242,4270.36,0.00054794,120]
[312510886,1705935459591,500.0,0.00054794,120]
[312510887,1705935459744,802.06,0.00054794,120]
[312510888,1705935459944,1943.79,0.00054794,120]
[312510889,1705935460297,641.75,0.00054794,120]
[312510890,1705935460388,446.44372204,0.00048,30]
[312510891,1705935460527,579.08425771,0.00054794,120]
[312510892,1705935460639,711.94,0.00054794,120]
[312510893,1705935461607,856.11,0.00054794,120]
[312510894,1705935461696,500.0,0.00054794,120]
[312510895,1705935461851,150.0,0.00052,30]
[312510896,1705935462672,1214.25,0.00054794,120]
[312510897,1705935462888,500.0,0.00054794,120]
[312510898,1705935462940,2149.2,0.00054794,120]
[312510899,1705935462988,150.0,0.00052,30]
[312510900,1705935463054,28848.31163305,0.0005,30]
[312510901,1705935463610,720.71,0.00054794,120]
[312510902,1705935463914,670.53,0.00054794,120]
[312510903,1705935464584,150.0,0.00052,30]
[312510904,1705935465436,150.0,0.00052,30]
[312510905,1705935465958,2140.52,0.00054794,120]
[312510906,1705935467203,1445.18,0.00054794,120]
[312510907,1705935467279,2000.0,0.00054794,120]
[312510908,1705935469449,152.250708,0.00054794,30]
[312510909,1705935469900,160.00953017,0.000502,30]
[312510910,1705935470317,580.97,0.00054794,120]
[312510911,1705935471476,1508.02,0.00054794,120]
[312510912,1705935472628,500.0,0.00054794,120]
[312510913,1705935472704,4911.09259311,0.00050441,120]
[312510914,1705935473473,839.71,0.00054794,120]
[312510915,1705935473516,500.0,0.00054794,120]
[312510916,1705935475898,545.26118799,0.00052,30]
[312510917,1705935476921,604.85,0.00054794,120]
[312510918,1705935478700,500.0,0.00054794,120]
[312510919,1705935479758,500.0,0.00054794,120]
[312510920,1705935480358,523.09,0.00054794,120]
[312510921,1705935480694,1680.14,0.00054794,120]
[312510922,1705935481042,28848.31163305,0.0005,30]
[312510923,1705935481873,500.0,0.00054794,120]
[312510924,1705935482123,538.81,0.00054794,120]
[312510925,1705935482667,500.0,0.00054794,120]
[312510926,1705935483833,784.26,0.00054794,120]
[312510927,1705935484600,500.0,0.00054794,120]
[312510928,1705935484656,1176.02,0.00054794,120]
[312510929,1705935485164,8319.59677843,0.0005479,120]
[312510930,1705935487238,500.0,0.00054794,120]
[312510931,1705935489503,812.43,0.00054794,120]
[312510932,1705935489914,160.00953017,0.000502,30]
[312510933,1705935490524,640.86,0.00054794,120]
[312510934,1705935490972,719.53,0.00054794,120]
[312510935,1705935492649,707.45,0.00054794,120]
[312510936,1705935492920,752.08,0.00054794,120]
[312510937,1705935494200,500.0,0.00054794,120]
[312510938,1705935497045,28848.31163305,0.0005,30]
[312510939,1705935497124,1984.27,0.00054794,120]
[312510940,1705935498459,500.0,0.00054794,120]
[312510941,1705935498874,747.48,0.00054794,120]
[312510942,1705935499578,4503.13,0.00054794,120]
[312510943,1705935499683,66993.4,0.000547,30]
[312510944,1705935500043,800.73,0.00054794,120]
[312510945,1705935500527,1206.96,0.00054794,120]
[312510946,1705935500834,575.37,0.00054794,120]
[312510947,1705935501615,500.0,0.00054794,120]
[312510948,1705935501989,895.31,0.00054794,120]
[312510949,1705935503494,626.58,0.00054794,120]
[312510950,1705935506025,1002.10756281,0.0005479,120]
[312510951,1705935508512,1665.99,0.00054794,120]
[312510952,1705935509898,160.00953017,0.000502,30]
[312510953,1705935509943,500.0,0.00054794,120]
[312510954,1705935510997,1366.24,0.00054794,120]
[312510955,1705935511535,500.0,0.00054794,120]
[312510956,1705935512303,500.0,0.00054794,120]
[312510957,1705935512390,500.0,0.00054794,120]
[312510958,1705935512580,542.49,0.00054794,120]
[312510959,1705935513127,1140.37,0.00054794,120]
[312510960,1705935513214,661.78,0.00054794,120]
[312510961,1705935513302,1562.51,0.00054794,120]
[312510962,1705935514483,1021.22,0.00054794,120]
[312510963,1705935514751,500.0,0.00054794,120]
[312510964,1705935515043,28848.31163305,0.0005,30]
[312510965,1705935515690,255.2,0.00020413,2]
[312510966,1705935518366,500.0,0.00054794,120]
[312510967,1705935518719,603.25,0.00054794,120]
[312510968,1705935519459,519.52,0.00054794,120]
[312510969,1705935520297,500.0,0.00054794,120]
[312510970,1705935520354,770982.6065242,0.00054795,30]
[312510971,1705935522231,500.0,0.00054794,120]
[312510972,1705935522363,150.0,0.00049315,30]
[312510973,1705935522623,300.0,0.0005,35]
[312510974,1705935522910,450.0,0.00050684,40]
[312510975,1705935523170,600.0,0.00051369,45]
[312510976,1705935523479,750.0,0.00052054,50]
[312510977,1705935523529,1040.96,0.00054794,120]
[312510978,1705935523733,900.0,0.00052739,55]
[312510979,1705935523780,1720.93,0.00054794,120]
[312510980,1705935524025,1050.0,0.00053424,60]
[312510981,1705935524283,1200.0,0.00054109,65]
[312510982,1705935524546,655.6556709,0.00054794,70]
[312510983,1705935524935,734.35,0.00054794,120]
[312510984,1705935525356,500.0,0.00054794,120]
[312510985,1705935525886,160.00953017,0.000502,30]
[312510986,1705935526919,8139.55,0.00054794,120]
[312510987,1705935527584,500.0,0.00054794,120]
[312510988,1705935528213,500.0,0.00054794,120]
[312510989,1705935528809,500.0,0.00054794,120]
[312510990,1705935530755,500.0,0.00054794,120]
[312510991,1705935532393,1332.01,0.00054794,120]
[312510992,1705935532678,1403.38,0.00054794,120]
[312510993,1705935533679,554.53851626,0.00054794,120]
[312510994,1705935534195,2764.46,0.00054794,120]
[312510995,1705935535141,500.0,0.00054794,120]
[312510996,1705935535620,500.0,0.00054794,120]
[312510997,1705935535847,500.0,0.00054794,120]
[312510998,1705935537061,28848.31163305,0.0005,30]
[312510999,1705935537633,769.17,0.00054794,120]
[312511000,1705935538207,582.45,0.00054794,120]
[312511001,1705935538733,1829.81,0.00054794,120]
[312511002,1705935540041,1500.0,0.00054,30]
[312511003,1705935541874,500.0,0.00054794,120]
[312511004,1705935541917,160.00953017,0.000502,30]
[312511005,1705935542042,500.0,0.00054794,120]
[312511006,1705935543170,613.19,0.00054794,120]
[312511007,1705935543800,6907.36,0.00054794,120]
[312511008,1705935544198,500.0,0.00054794,120]
[312511009,1705935546737,965.24,0.00054794,120]
[312511010,1705935546870,1352.31,0.00054794,120]
[312511011,1705935549127,871.84,0.00054794,120]
[312511012,1705935550165,1582.1,0.00054794,120]
[312511013,1705935550223,500.0,0.00054794,120]
[312511014,1705935550289,500.0,0.00054794,120]
[312511015,1705935550711,500.0,0.00054794,120]
[312511016,1705935551055,28868.33187375,0.0005,30]
[312511017,1705935553407,550.61,0.00054794,120]
[312511018,1705935554619,500.0,0.00054794,120]
[312511019,1705935555579,1372.17,0.00054794,120]
[312511020,1705935555827,639.73,0.00054794,120]
[312511021,1705935558372,500.0,0.00054794,120]
[312511022,1705935558584,500.0,0.00054794,120]
[312511023,1705935560256,500.0,0.00054794,120]
[312511024,1705935561510,579.79,0.00054794,120]
[312511025,1705935561594,795.82,0.00054794,120]
[312511026,1705935561656,500.0,0.00054794,120]
[312511027,1705935561964,1015.58,0.00054794,120]
[312511028,1705935563903,239.95614927,0.000502,30]
[312511029,1705935564469,647.04,0.00054794,120]
[312511030,1705935564927,565.34,0.00054794,120]
[312511031,1705935566707,500.0,0.00054794,120]
[312511032,1705935567025,500.0,0.00054794,120]
[312511033,1705935569395,5052.38,0.00054794,120]
[312511034,1705935569811,1644.24,0.00054794,120]
[312511035,1705935572722,500.0,0.00054794,120]
[312511036,1705935573930,978.41,0.00054794,120]
[312511037,1705935573976,500.0,0.00054794,120]
[312511038,1705935574117,1332.17,0.00054794,120]
[312511039,1705935575257,500.0,0.00054794,120]
[312511040,1705935576958,500.0,0.00054794,120]
[312511041,1705935577041,665.08,0.00054794,120]
[312511042,1705935577960,500.0,0.00054794,120]
[312511043,1705935579998,500.0,0.00054794,120]
[312511044,1705935581438,903.89,0.00054794,120]
[312511045,1705935582511,3000.0,0.00054,30]
[312511046,1705935584268,555.89,0.00054794,120]
[312511047,1705935584315,500.0,0.00054794,120]
[312511048,1705935585328,1909.67,0.00054794,120]
[312511049,1705935588041,500.0,0.00054794,120]
[312511050,1705935589367,545.08,0.00054794,120]
[312511051,1705935589592,500.0,0.00054794,120]
[312511052,1705935590960,652.45,0.00054794,120]
[312511053,1705935591649,1793.19,0.00054794,120]
[312511054,1705935592958,704.13,0.00054794,120]
[312511055,1705935594904,500.0,0.00054794,120]
[312511056,1705935595030,500.0,0.00054794,120]
[312511057,1705935595828,732.2,0.00054794,120]
[312511058,1705935597063,501.19,0.00054794,120]
[312511059,1705935598218,500.0,0.00054794,120]
[312511060,1705935598418,518.55,0.00054794,120]
[312511061,1705935600419,500.0,0.00054794,120]
[312511062,1705935600474,547.86,0.00054794,120]
[312511063,1705935601527,702.69,0.00054794,120]
[312511064,1705935602275,1732.01,0.00054794,120]
[312511065,1705935603650,500.0,0.00054794,120]
[312511066,1705935603917,500.0,0.00054794,120]
[312511067,1705935610670,500.0,0.00054794,120]
[312511068,1705935612162,1549.52,0.00054794,120]
[312511069,1705935613271,500.0,0.00054794,120]
[312511070,1705935613997,500.0,0.00054794,120]
[312511071,1705935615850,3558.81,0.00054794,120]
[312511072,1705935615990,1085.36,0.00054794,120]
[312511073,1705935616437,500.0,0.00054794,120]
[312511074,1705935618121,500.0,0.00054794,120]
[312511075,1705935620023,500.0,0.00054794,120]
[312511076,1705935620189,500.0,0.00054794,120]
[312511077,1705935621616,500.0,0.00054794,120]
[312511078,1705935622293,500.0,0.00054794,120]
[312511079,1705935623135,500.0,0.00054794,120]
[312511080,1705935624046,500.0,0.00054794,120]
[312511081,1705935624406,518.79,0.00054794,120]
[312511082,1705935625257,2306.02,0.00054794,120]
[312511083,1705935626055,500.0,0.00054794,120]
[312511084,1705935626470,1171.47,0.00054794,30]
[312511085,1705935626911,500.0,0.00054794,120]
[312511086,1705935627095,1025.43,0.00054794,120]
[312511087,1705935628091,501.28255503,0.00054794,120]
[312511088,1705935628136,500.0,0.00054794,120]
[312511089,1705935629060,552.44,0.00054794,120]
[312511090,1705935629680,576.63,0.00054794,120]
[312511091,1705935629794,500.0,0.00054794,120]
[312511092,1705935630308,500.0,0.0005479,120]
[312511093,1705935630395,500.0,0.00054794,120]
[312511094,1705935631052,500.0,0.0005479,120]
[312511095,1705935631102,500.0,0.0005479,120]
[312511096,1705935631155,500.0,0.00054794,120]
[312511097,1705935631471,500.0,0.0005479,120]
[312511098,1705935631544,2048.09,0.00054794,120]
[312511099,1705935631789,500.0,0.00054794,120]
[312511100,1705935631887,500.0,0.0005479,120]
[312511101,1705935632052,253.03809498,0.00054794,120]
[312511102,1705935632258,500.0,0.0005479,120]
[312511103,1705935632664,685.01,0.00054794,120]
[312511104,1705935632848,500.0,0.00054794,120]
[312511105,1705935632951,500.0,0.00054794,120]
[312511106,1705935633576,500.0,0.00054794,120]
[312511107,1705935633788,1244.61,0.00054794,120]
[312511108,1705935634936,983.38,0.00054794,120]
[312511109,1705935635263,500.0,0.0005479,120]
[312511110,1705935635616,500.0,0.0005479,120]